bitfinex/quotes_SOLUSD_20220210
["timestamp","ask_amount","ask_price","bid_price","bid_amount"]
[1644518334091,0.25,110.03,109.95,57.60137466]
[1644518334290,4.545,110.03,109.95,10.79]
[1644518334694,29.0486,110.03,109.95,10.79]
[1644518335298,4.545,110.02,109.96,44.46926137]
[1644518335519,24.5036,110.03,109.96,44.46926137]
[1644518336092,24.5036,110.03,109.96,50.46926137]
[1644518336291,24.5036,110.03,109.96,44.46926137]
[1644518336492,18.1843,110.06,109.96,44.46926137]
[1644518336693,20.64602919,110.07,109.97,10.79]
[1644518336894,13.64602919,110.07,109.97,10.79]
[1644518337093,13.64602919,110.07,109.98,42.0976553]
[1644518337297,13.64602919,110.07,109.98,52.8876553]
[1644518337695,173.0178,110.08,109.98,52.8876553]
[1644518337900,4.543,110.07,109.98,52.8876553]
[1644518338897,3.46031923,110.06,109.98,52.8876553]
[1644518339101,3.46031923,110.06,109.98,10.79]
[1644518339297,3.46031923,110.06,109.96,10.79]
[1644518339499,4.045,110.05,109.95,10.79]
[1644518340300,19.91632154,110.05,109.93,10.79]
[1644518340499,46.45932154,110.05,109.91,100.68]
[1644518340705,111.9,110.03,109.91,10.79]
[1644518340905,27.0713,110.02,109.92,35.88258993]
[1644518341107,22.5253,110.02,109.92,35.88258993]
[1644518341309,22.5253,110.02,109.92,46.67258993]
[1644518341911,22.5253,110.02,109.92,46.92258993]
[1644518342409,22.5253,110.02,109.92,46.67258993]
[1644518342809,22.5253,110.02,109.92,46.92258993]
[1644518343208,23.7493,110.04,109.92,52.92258993]
[1644518343409,8.753,110.05,109.92,53.24594137]
[1644518343608,8.753,110.05,109.92,63.71602676]
[1644518343808,8.753,110.05,109.92,79.03577523]
[1644518344014,8.753,110.05,109.94,40.85011652]
[1644518344209,8.753,110.05,109.96,37.51689592]
[1644518344407,8.753,110.05,109.97,10.79]
[1644518344824,8.753,110.05,109.97,11.04]
[1644518345224,8.753,110.05,109.98,45.68172337]
[1644518345624,9.003,110.05,109.98,45.68172337]
[1644518345823,9.003,110.05,109.98,56.47172337]
[1644518346023,10.21191277,110.05,109.98,56.47172337]
[1644518346224,9.003,110.05,109.98,45.68172337]
[1644518348426,9.003,110.05,109.96,10.79]
[1644518348626,9.003,110.05,109.94,10.79]
[1644518348627,4.543,110.04,109.94,10.79]
[1644518348827,27.4728,110.04,109.94,11.04]
[1644518349226,27.7228,110.04,109.94,10.79]
[1644518349427,136.6852,110.03,109.95,47.75159531]
[1644518349828,111.9,110.03,109.95,58.54159531]
[1644518350127,8.753,110.05,109.95,64.54159531]
[1644518350534,8.753,110.05,109.95,78.17759531]
[1644518350727,19.50178899,110.05,109.95,58.54159531]
[1644518351129,10.74878899,110.05,109.95,58.54159531]
[1644518351328,10.99878899,110.05,109.95,58.54159531]
[1644518351527,23.0486,110.04,109.95,58.54159531]
[1644518351827,23.0486,110.04,109.95,47.75159531]
[1644518351828,36.6894,110.04,109.95,47.75159531]
[1644518352030,4.545,110.03,109.95,47.75159531]
[1644518352231,7.0,110.03,109.95,47.75159531]
[1644518352486,27.5936,110.04,109.95,47.75159531]
[1644518352634,51.3813,110.04,109.95,47.75159531]
[1644518352933,13.6429,110.02,109.95,47.75159531]
[1644518354832,13.6416,110.03,109.95,47.75159531]
[1644518355437,7.0,110.07,109.97,55.0]
[1644518355699,113.2578,110.1,109.98,10.79]
[1644518355838,35.36654666,110.11,109.99,0.30711263]
[1644518355839,27.00159235,110.11,109.99,0.30711263]
[1644518356041,16.21399235,110.11,110.0,10.79]
[1644518356236,373.93797326,110.12,110.0,17.04]
[1644518356436,38.53892316,110.14,110.03,5.93169798]
[1644518356638,0.024,110.16,110.04,15.331]
[1644518356836,4.565,110.16,110.04,11.04]
[1644518357035,0.024,110.17,110.04,11.04]
[1644518357234,0.024,110.15,110.06,0.3174252]
[1644518357434,84.07869235,110.19,110.06,0.3174252]
[1644518357435,0.024,110.18,110.07,10.79]
[1644518357641,0.024,110.16,110.08,29.12963734]
[1644518357833,37.37819455,110.18,110.08,29.12963734]
[1644518357834,37.40219455,110.18,110.09,10.79]
[1644518358037,0.024,110.17,110.1,12.06082439]
[1644518358237,37.37819455,110.18,110.1,12.06082439]
[1644518358435,37.37819455,110.18,110.1,22.85082439]
[1644518358734,37.37819455,110.18,110.1,23.10082439]
[1644518359137,0.024,110.21,110.1,23.10082439]
[1644518359336,0.024,110.21,110.1,29.10082439]
[1644518359538,2.23122154,110.05,110.0,2.58099235]
[1644518359742,51.0,110.03,109.95,45.4437]
[1644518359955,51.0,110.03,109.89,2.5783057]
[1644518360142,15.337,110.02,109.82,16.5115057]
[1644518360340,134.31272154,110.02,109.83,10.79]
[1644518360543,134.31272154,110.02,109.83,54.1277566]
[1644518360544,46.190684,110.01,109.83,54.1277566]
[1644518360740,35.88365286,109.99,109.83,54.1277566]
[1644518360941,4.549,109.98,109.83,54.1277566]
[1644518361141,46.190684,109.97,109.83,54.1277566]
[1644518361441,0.25,109.97,109.83,54.1277566]
[1644518362072,0.25,109.97,109.84,1.37]
[1644518362242,0.25,109.97,109.85,58.98912307]
[1644518362444,0.25,110.01,109.85,58.98912307]
[1644518362644,4.548,110.0,109.85,59.23912307]
[1644518362943,0.25,110.0,109.86,1.67756055]
[1644518363146,4.548,110.01,109.87,10.79]
[1644518363343,12.02609969,110.03,109.88,39.98519576]
[1644518363547,12.02609969,110.03,109.9,48.38663961]
[1644518363744,12.02609969,110.03,109.92,44.77361123]
[1644518363947,53.64627987,110.03,109.92,55.56361123]
[1644518364181,12.02609969,110.03,109.92,55.56361123]
[1644518364345,12.02609969,110.03,109.92,44.77361123]
[1644518364346,10.79,110.03,109.92,44.77361123]
[1644518364547,4.546,110.05,109.93,162.89]
[1644518364748,24.2755,110.07,109.95,89.89]
[1644518364947,4.545,110.11,109.96,109.335]
[1644518365146,4.543,110.13,109.97,40.63045333]
[1644518365358,4.567,110.15,109.99,1.37]
[1644518365556,0.024,110.14,110.0,4.542]
[1644518365751,0.024,110.14,110.0,12.47511505]
[1644518365947,0.024,110.14,110.0,23.26511505]
[1644518366149,0.024,110.14,110.02,47.67843431]
[1644518366348,0.024,110.14,110.02,58.47043431]
[1644518366549,0.024,110.15,110.02,58.47043431]
[1644518366758,0.024,110.15,110.02,53.92843431]
[1644518366949,0.024,110.15,110.02,55.61105949]
[1644518367148,0.024,110.15,110.03,10.79]
[1644518367407,0.024,110.15,110.03,17.04]
[1644518367556,0.024,110.17,110.04,1.68262518]
[1644518367748,0.024,110.14,110.05,53.44620617]
[1644518367954,0.024,110.16,110.05,53.44620617]
[1644518368153,43.85781996,110.14,110.05,42.65620617]
[1644518368556,49.85781996,110.14,110.05,42.65620617]
[1644518368750,50.10781996,110.14,110.05,42.65620617]
[1644518369952,15.331,110.13,109.96,133.3063]
[1644518370151,15.355,110.13,109.96,10.79]
[1644518370354,25.21959969,110.13,109.96,10.79]
[1644518370554,25.21959969,110.13,109.97,4.543]
[1644518370750,9.61459969,110.12,109.97,4.543]
[1644518370976,15.333,110.11,109.98,44.38405256]
[1644518371154,43.33647874,110.1,109.98,44.38405256]
[1644518371351,45.11079845,110.08,109.98,44.38405256]
[1644518371586,10.79,110.07,109.98,44.38405256]
[1644518371752,6.0,110.08,109.98,44.38405256]
[1644518372551,41.82743899,110.07,109.98,44.38405256]
[1644518372755,10.543,110.08,109.98,44.38405256]
[1644518373153,10.793,110.08,109.98,44.38405256]
[1644518373680,6.25,110.08,109.98,44.38405256]
[1644518373853,36.16876608,110.09,109.98,44.38405256]
[1644518374055,35.91876608,110.09,109.98,44.38405256]
[1644518374252,30.6761,110.11,109.98,44.38405256]
[1644518374253,40.63265803,110.07,109.98,44.38405256]
[1644518374657,10.79,110.06,109.98,44.38405256]
[1644518375257,25.1827,110.08,109.99,90.0]
[1644518375465,17.28410931,110.12,109.99,90.0]
[1644518375466,15.333,110.12,109.99,90.0]
[1644518375660,0.024,110.13,110.0,1.67870589]
[1644518375873,4.542,110.12,110.0,1.92870589]
[1644518376061,0.024,110.12,110.0,1.92870589]
[1644518376258,0.024,110.12,110.01,36.44442982]
[1644518376458,4.566,110.12,110.01,36.44442982]
[1644518376659,4.566,110.12,110.01,35.01572393]
[1644518376660,38.43730963,110.11,110.01,35.01572393]
[1644518376859,0.024,110.11,110.01,35.01572393]
[1644518377059,4.566,110.13,110.01,35.01572393]
[1644518377867,39.10348348,110.12,110.01,35.01572393]
[1644518378487,39.10348348,110.12,110.01,34.76572393]
[1644518378690,39.35348348,110.12,110.01,34.76572393]
[1644518378886,52.37470502,110.12,110.01,34.76572393]
[1644518379287,44.59270142,110.1,110.01,34.76572393]
[1644518379587,10.79,110.1,110.01,34.76572393]
[1644518379787,0.024,110.11,110.01,34.76572393]
[1644518379986,4.542,110.1,110.01,34.76572393]
[1644518380193,4.567,110.11,110.01,34.76572393]
[1644518380392,18.1996,110.12,110.01,34.76572393]
[1644518380591,0.024,110.11,110.01,35.01572393]
[1644518380791,0.024,110.12,110.01,35.01572393]
[1644518380989,0.024,110.11,110.01,35.01572393]
[1644518381253,0.024,110.13,110.01,35.01572393]
[1644518381390,4.542,110.12,110.01,34.76572393]
[1644518381589,36.83869359,110.11,110.01,34.76572393]
[1644518381789,36.86269359,110.11,110.01,35.01572393]
[1644518382190,37.11269359,110.11,110.01,34.76572393]
[1644518382391,48.47424499,110.09,110.01,34.76572393]
[1644518382591,44.38162346,110.07,110.01,34.76572393]
[1644518384291,4.543,110.09,110.01,34.76572393]
[1644518384490,10.79,110.09,110.01,34.76572393]
[1644518385492,45.64535892,110.08,110.01,34.76572393]
[1644518385691,35.5583157,110.06,110.01,34.76572393]
[1644518385892,4.543,110.08,110.01,34.76572393]
[1644518386092,18.1807,110.08,110.01,34.76572393]
[1644518386694,4.543,110.08,110.01,34.76572393]
[1644518386893,50.36767305,110.08,110.01,34.76572393]
[1644518387195,10.79,110.09,110.01,34.76572393]
[1644518387792,0.024,110.1,110.02,1.67457777]
[1644518387993,0.024,110.13,110.02,1.67457777]
[1644518388294,150.13759235,110.16,110.03,35.51436315]
[1644518388295,0.024,110.12,110.03,35.51436315]
[1644518388693,0.024,110.14,110.04,26.08907777]
[1644518388898,71.7931,110.18,110.04,26.08907777]
[1644518388899,0.024,110.16,110.05,89.89]
[1644518389096,24.0153,110.18,110.05,89.89]
[1644518389097,0.024,110.17,110.05,102.35457777]
[1644518389297,24.0153,110.18,110.05,102.35457777]
[1644518389298,0.024,110.15,110.06,38.97106221]
[1644518389496,24.0153,110.18,110.06,38.97106221]
[1644518389497,0.024,110.17,110.06,55.76106221]
[1644518389708,0.024,110.17,110.07,1.67457777]
[1644518389906,0.024,110.2,110.07,26.08517777]
[1644518390101,0.024,110.2,110.07,32.33517777]
[1644518390299,0.024,110.2,110.08,1.67457777]
[1644518390498,6.024,110.21,110.09,10.79]
[1644518390747,6.0,110.21,110.09,10.79]
[1644518390900,55.45569477,110.19,110.1,36.15136685]
[1644518391102,45.98855231,110.17,110.1,36.15136685]
[1644518391803,46.23855231,110.17,110.1,36.15136685]
[1644518392100,46.23855231,110.17,110.02,10.79]
[1644518392300,13.6296,110.14,110.02,10.79]
[1644518392499,0.024,110.13,110.02,10.79]
[1644518392700,0.024,110.13,110.02,11.04]
[1644518393105,0.024,110.13,110.03,36.04354699]
[1644518393302,0.024,110.13,110.03,36.29354699]
[1644518393499,0.024,110.13,110.03,36.04354699]
[1644518393699,13.6296,110.14,110.03,36.04354699]
[1644518394405,18.1721,110.13,110.03,36.04354699]
[1644518394602,4.565,110.13,110.03,36.04354699]
[1644518394803,0.024,110.14,110.03,36.04354699]
[1644518395002,0.024,110.16,110.03,42.04354699]
[1644518395408,42.50967504,110.16,110.03,42.04354699]
[1644518395602,42.50967504,110.16,110.03,42.29354699]
[1644518396017,56.13647504,110.16,110.03,36.04354699]
[1644518396204,34.51341896,110.14,110.03,36.04354699]
[1644518396406,45.32741896,110.14,110.03,36.04354699]
[1644518396603,4.541,110.13,110.03,36.04354699]
[1644518396806,48.04324212,110.12,110.03,36.04354699]
[1644518397207,4.542,110.12,110.03,36.04354699]
[1644518397810,4.542,110.12,110.03,36.29354699]
[1644518398216,44.20651723,110.13,110.03,36.29354699]
[1644518398412,13.6537,110.14,110.03,36.04354699]
[1644518398713,0.024,110.13,110.03,36.29354699]
[1644518399015,13.6297,110.14,110.03,36.29354699]
[1644518399212,4.541,110.13,110.03,36.29354699]
[1644518399412,36.74060496,110.12,110.03,36.04354699]
[1644518399613,36.74060496,110.12,109.99,4.542]
[1644518399814,133.0,110.09,109.93,173.6169]
[1644518400023,59.024,110.08,109.93,125.41966357]
[1644518400238,12.08486725,110.07,109.93,78.1201889]
[1644518400417,13.6421,110.05,109.93,66.94995557]
[1644518400616,28.6513087,110.04,109.93,57.66904954]
[1644518400921,1.29486725,110.01,109.86,1.29514247]
[1644518401117,15.338,110.0,109.86,1.29514247]
[1644518401375,1.29486725,109.99,109.84,1.29514247]
[1644518401522,11.548,109.98,109.84,1.29514247]
[1644518401720,11.548,109.98,109.85,46.46505561]
[1644518401721,15.52581045,109.97,109.85,46.46505561]
[1644518401919,4.549,109.96,109.83,1.29514247]
[1644518402118,10.79,109.95,109.81,1.29514247]
[1644518402321,4.55,109.94,109.81,1.29514247]
[1644518402617,7.0,109.9,109.82,1.29514247]
[1644518402819,7.0,109.9,109.83,36.28988836]
[1644518402820,10.79,109.9,109.83,36.28988836]
[1644518403116,10.79,109.9,109.82,1.29514247]
[1644518403117,9.28681045,109.89,109.82,1.29514247]
[1644518403318,4.551,109.89,109.8,1.29514247]
[1644518403518,10.79,109.9,109.8,1.29514247]
[1644518403719,0.25,109.89,109.8,1.29514247]
[1644518403918,0.25,109.89,109.81,1.29514247]
[1644518404119,0.25,109.89,109.78,1.29514247]
[1644518404317,6.0,109.9,109.79,36.73751664]
[1644518404551,4.551,109.91,109.79,38.03265911]
[1644518404737,19.23698861,109.92,109.79,38.67287174]
[1644518404940,4.551,109.91,109.79,38.67287174]
[1644518405138,26.772273,109.9,109.79,36.73751664]
[1644518405340,4.551,109.89,109.79,36.73751664]
[1644518405542,16.79,109.92,109.8,1.6853551]
[1644518406340,25.75872312,109.91,109.81,45.47788774]
[1644518406540,15.341,109.91,109.81,45.47788774]
[1644518406744,10.79,109.91,109.81,45.47788774]
[1644518407340,10.79,109.91,109.81,45.72788774]
[1644518407541,17.36135641,109.93,109.81,45.72788774]
[1644518407742,4.55,109.92,109.81,45.72788774]
[1644518407941,4.55,109.92,109.81,47.41324284]
[1644518408142,4.551,109.93,109.81,47.41324284]
[1644518408344,15.34,109.94,109.81,53.41324284]
[1644518409448,6.37591793,109.93,109.81,51.72788774]
[1644518409868,10.79,109.94,109.81,51.72788774]
[1644518410049,4.55,109.95,109.82,1.68217368]
[1644518410248,4.55,109.97,109.83,10.79]
[1644518410447,23.7996,110.0,109.83,11.09808101]
[1644518410647,28.3476,110.0,109.84,1.68217368]
[1644518410947,24.66098437,109.99,109.85,56.17186935]
[1644518411346,24.66098437,109.99,109.85,56.42186935]
[1644518411545,30.66098437,109.99,109.85,56.42186935]
[1644518411748,30.66098437,109.99,109.85,56.17186935]
[1644518411990,26.11298437,109.99,109.85,56.42186935]
[1644518412846,6.25,109.99,109.85,58.10404303]
[1644518413054,23.7996,110.0,109.85,58.10404303]
[1644518413347,4.548,110.05,109.88,0.31858977]
[1644518413546,0.02440972,110.07,109.89,10.79]
[1644518413746,0.02440972,110.09,109.93,1.37]
[1644518413947,16.29246505,110.09,109.95,44.03932133]
[1644518414146,4.56740972,110.08,109.97,46.67987152]
[1644518414354,0.02440972,110.08,109.97,46.92987152]
[1644518414549,0.02440972,110.08,109.97,46.67987152]
[1644518414952,13.6407,110.06,109.93,1.68217368]
[1644518415175,4.545,110.05,109.85,13.7054]
[1644518415350,47.81965428,110.05,109.86,12.47217368]
[1644518415547,15.62756,110.04,109.86,12.47217368]
[1644518415947,6.32906382,110.03,109.88,13.6425]
[1644518416150,6.32906382,110.03,109.89,41.62792807]
[1644518416349,16.26805533,110.01,109.89,43.31010175]
[1644518416550,4.547,110.0,109.89,41.62792807]
[1644518416748,15.337,110.02,109.89,41.62792807]
[1644518417052,22.337,110.02,109.89,41.62792807]
[1644518417281,10.79,110.02,109.89,41.62792807]
[1644518417449,17.79,110.02,109.89,41.62792807]
[1644518417649,7.0,110.02,109.89,41.62792807]
[1644518417858,4.547,110.02,109.89,43.31010175]
[1644518418051,35.88173303,110.05,109.89,43.31010175]
[1644518418251,35.88173303,110.05,109.91,38.92927115]
[1644518418654,7.0,110.0,109.91,38.92927115]
[1644518418855,15.69678612,110.03,109.91,38.92927115]
[1644518419056,4.546,110.02,109.91,38.92927115]
[1644518419254,7.0,110.01,109.91,38.92927115]
[1644518419457,4.546,110.02,109.91,38.92927115]
[1644518419656,10.796,110.02,109.91,38.92927115]
[1644518419853,7.0,110.0,109.91,38.92927115]
[1644518420055,4.547,109.99,109.91,38.92927115]
[1644518421363,4.547,110.0,109.84,10.79]
[1644518421560,19.924,109.99,109.84,10.79]
[1644518421759,4.548,109.98,109.84,10.79]
[1644518421959,18.1988,109.98,109.85,1.68768318]
[1644518422358,18.1988,109.98,109.86,44.1025364]
[1644518422961,4.548,109.98,109.86,44.1025364]
[1644518423161,4.548,109.98,109.87,1.68768318]
[1644518423363,4.548,110.0,109.87,1.68768318]
[1644518423763,25.10786427,110.0,109.88,42.20548389]
[1644518423962,4.798,110.0,109.88,42.20548389]
[1644518424764,18.4461,110.0,109.88,44.14316707]
[1644518425265,18.4461,110.0,109.88,43.89316707]
[1644518425463,13.8981,110.0,109.88,43.89316707]
[1644518425668,25.36785593,110.0,109.88,43.89316707]
[1644518425863,31.36785593,110.0,109.88,43.89316707]
[1644518426063,13.6517,109.97,109.88,42.20548389]
[1644518426264,4.46975593,109.95,109.88,42.20548389]
[1644518426464,4.548,109.94,109.88,42.20548389]
[1644518426664,4.549,109.97,109.88,42.20548389]
[1644518426873,7.0,109.96,109.88,42.20548389]
[1644518427271,10.79,109.97,109.88,42.20548389]
[1644518427668,11.04,109.97,109.88,42.20548389]
[1644518427864,4.548,109.96,109.88,42.20548389]
[1644518428068,15.588,109.97,109.88,42.20548389]
[1644518428265,31.6914,109.97,109.88,42.20548389]
[1644518428465,23.29939726,109.96,109.82,1.29514247]
[1644518428666,7.0,109.95,109.81,1.29514247]
[1644518428893,7.0,109.95,109.81,1.68768318]
[1644518429466,13.0,109.95,109.81,1.68768318]
[1644518429668,13.0,109.95,109.81,2.98282565]
[1644518429870,13.6557,109.94,109.82,41.20391627]
[1644518430670,13.6557,109.94,109.82,41.45391627]
[1644518430869,13.6557,109.94,109.82,42.74905874]
[1644518431370,13.6557,109.94,109.82,41.20391627]
[1644518431570,13.6557,109.94,109.82,41.45391627]
[1644518431771,13.6557,109.94,109.82,41.20391627]
[1644518432474,4.55,109.93,109.82,41.20391627]
[1644518432876,4.55,109.93,109.82,44.43674192]
[1644518433094,11.55,109.95,109.83,91.18514247]
[1644518433274,4.55,109.97,109.83,102.22514247]
[1644518433474,4.549,109.98,109.84,1.68768318]
[1644518433674,4.549,109.98,109.84,2.98282565]
[1644518433873,5.71603995,109.98,109.85,47.1953347]
[1644518434073,19.36623995,109.98,109.85,47.1953347]
[1644518434273,37.15623995,109.98,109.85,47.1953347]
[1644518434478,30.28406725,109.98,109.85,47.1953347]
[1644518434679,7.0,109.97,109.85,47.1953347]
[1644518434882,4.549,109.96,109.85,47.1953347]
[1644518435124,4.549,109.97,109.85,47.1953347]
[1644518435280,4.799,109.97,109.85,47.1953347]
[1644518435481,18.4499,109.97,109.85,49.13301788]
[1644518435681,10.549,109.97,109.85,49.13301788]
[1644518435881,10.549,109.97,109.85,151.10816035]
[1644518435882,6.0,109.97,109.85,151.10816035]
[1644518436282,58.9402,109.99,109.86,1.29514247]
[1644518436487,58.9402,109.99,109.87,48.42426581]
[1644518436684,7.39147728,109.98,109.87,48.42426581]
[1644518436889,19.75364187,109.96,109.87,48.42426581]
[1644518437084,4.548,109.95,109.87,48.42426581]
[1644518437283,4.549,109.96,109.87,48.42426581]
[1644518437483,7.0,109.94,109.87,48.42426581]
[1644518437691,1.29486725,109.98,109.87,48.42426581]
[1644518437885,47.23506725,109.99,109.87,48.42426581]
[1644518438300,54.23506725,109.99,109.87,48.42426581]
[1644518438506,47.23506725,109.99,109.87,48.42426581]
[1644518438702,13.6497,109.98,109.87,48.42426581]
[1644518438903,20.6497,109.98,109.87,48.42426581]
[1644518439104,20.8997,109.98,109.87,48.42426581]
[1644518439402,21.94456725,109.98,109.87,48.42426581]
[1644518439702,13.6497,109.98,109.87,48.42426581]
[1644518439904,20.6497,109.98,109.87,48.42426581]
[1644518440309,7.0,109.98,109.88,1.68759171]
[1644518440606,45.9402,109.99,109.88,1.68759171]
[1644518440802,45.9402,109.99,109.89,35.00762621]
[1644518441003,51.9402,109.99,109.89,35.00762621]
[1644518441447,58.9402,109.99,109.89,35.00762621]
[1644518441604,59.1902,109.99,109.89,35.00762621]
[1644518441805,60.48506725,109.99,109.89,35.00762621]
[1644518442006,53.48506725,109.99,109.89,35.00762621]
[1644518442207,20.6491,109.98,109.89,35.00762621]
[1644518442411,22.56758001,109.98,109.89,35.00762621]
[1644518442708,4.548,109.97,109.89,35.00762621]
[1644518442908,7.0,109.96,109.89,35.00762621]
[1644518443107,4.548,109.95,109.89,35.00762621]
[1644518443309,7.0,109.96,109.89,35.00762621]
[1644518443707,13.6525,109.95,109.83,14.94784247]
[1644518443907,18.2015,109.95,109.83,1.29514247]
[1644518444107,7.0,109.93,109.81,1.29514247]
[1644518444307,14.29486725,109.93,109.81,1.29514247]
[1644518444508,4.55,109.92,109.81,1.29514247]
[1644518444708,13.0,109.93,109.82,46.14514545]
[1644518444908,13.0,109.93,109.83,1.29514247]
[1644518445108,13.0,109.93,109.82,59.79894545]
[1644518445313,13.0,109.93,109.83,1.29514247]
[1644518445511,4.551,109.95,109.84,1.29514247]
[1644518445709,47.2641,109.96,109.84,1.29514247]
[1644518445909,47.2641,109.96,109.85,2.98273418]
[1644518446112,65.4638,109.96,109.86,46.53519985]
[1644518446312,65.4638,109.96,109.86,45.24005738]
[1644518446712,71.4638,109.96,109.86,45.24005738]
[1644518447112,71.4638,109.96,109.86,60.43469985]
[1644518447312,66.9148,109.96,109.86,60.18469985]
[1644518447513,47.2641,109.96,109.86,60.18469985]
[1644518447784,5.84386725,109.98,109.87,1.29514247]
[1644518447915,0.25,109.96,109.88,35.72359047]
[1644518448315,1.54486725,109.96,109.88,35.72359047]
[1644518448515,19.49506725,109.95,109.88,35.72359047]
[1644518448714,25.49506725,109.95,109.88,35.72359047]
[1644518448915,7.0,109.93,109.88,35.72359047]
[1644518449117,4.549,109.92,109.88,35.72359047]
[1644518449317,1.29486725,109.93,109.88,35.72359047]
[1644518449516,4.549,109.92,109.88,35.72359047]
[1644518449717,18.2035,109.93,109.88,35.72359047]
[1644518450517,4.549,109.93,109.88,35.72359047]
[1644518450953,7.29486725,109.95,109.88,35.72359047]
[1644518450954,4.549,109.94,109.88,35.72359047]
[1644518451118,5.84386725,109.94,109.88,35.72359047]
[1644518451317,14.29486725,109.95,109.88,35.72359047]
[1644518451518,7.29486725,109.95,109.88,35.72359047]
[1644518451720,13.6529,109.94,109.84,1.29514247]
[1644518451918,4.55,109.93,109.83,1.29514247]
[1644518452118,4.55,109.93,109.82,1.29514247]
[1644518452418,5.84486725,109.93,109.82,1.29514247]
[1644518452630,11.84486725,109.93,109.83,35.6481976]
[1644518452819,6.0,109.93,109.83,49.3020976]
[1644518453221,67.02426725,109.94,109.83,50.59724007]
[1644518453420,67.02426725,109.94,109.83,49.3020976]
[1644518454020,65.7294,109.94,109.83,50.59724007]
[1644518454722,71.7294,109.94,109.83,50.59724007]
[1644518457361,76.62521895,109.94,109.83,50.59724007]
[1644518457628,12.08486725,109.93,109.83,35.6481976]
[1644518457830,13.6597,109.9,109.83,35.6481976]
[1644518458028,4.551,109.89,109.83,35.6481976]
[1644518458831,4.801,109.89,109.83,35.6481976]
[1644518459329,18.4607,109.89,109.83,35.6481976]
[1644518459630,18.2107,109.89,109.83,35.6481976]
[1644518459830,24.2107,109.89,109.83,35.6481976]
[1644518460030,10.551,109.89,109.83,35.6481976]
[1644518460530,5.84586725,109.93,109.84,44.0]
[1644518460735,5.84486725,109.95,109.85,13.653]
[1644518460932,7.0,109.95,109.86,39.48659394]
[1644518461133,7.0,109.95,109.86,41.17418565]
[1644518461333,13.6515,109.95,109.86,41.17418565]
[1644518461535,8.09392653,109.94,109.86,39.48659394]
[1644518461735,1.29486725,109.93,109.86,39.48659394]
[1644518461932,4.549,109.92,109.86,39.48659394]
[1644518462133,4.55,109.93,109.86,39.48659394]
[1644518462535,1.29486725,109.95,109.86,39.48659394]
[1644518462536,13.6536,109.94,109.86,39.48659394]
[1644518463135,4.549,109.93,109.86,39.48659394]
[1644518463337,12.84386725,109.95,109.86,39.48659394]
[1644518463536,1.29486725,109.95,109.86,39.48659394]
[1644518463780,1.29486725,109.96,109.86,39.48659394]
[1644518463936,4.549,109.96,109.86,39.48659394]
[1644518464857,4.799,109.96,109.86,39.48659394]
[1644518465059,0.25,109.96,109.86,39.48659394]
[1644518465660,1.29486725,109.97,109.86,53.13879394]
[1644518465861,25.10116725,109.98,109.86,157.05152812]
[1644518466059,23.8063,109.98,109.86,157.05152812]
[1644518466259,23.8063,109.98,109.88,40.48429788]
[1644518466459,23.8063,109.98,109.88,51.27429788]
[1644518466662,37.4537,109.98,109.9,13.6447]
[1644518466860,42.2507,109.98,109.91,37.30897396]
[1644518467066,62.87050128,109.98,109.9,13.6447]
[1644518467264,1.29486725,109.97,109.85,15.06544247]
[1644518467462,4.549,109.96,109.83,12.08514247]
[1644518467664,7.0,109.95,109.83,12.08514247]
[1644518467861,1.29486725,109.96,109.83,12.33514247]
[1644518468061,1.29486725,109.96,109.84,38.08256077]
[1644518468268,13.6523,109.95,109.86,37.90556835]
[1644518468662,20.61980128,109.94,109.86,37.90556835]
[1644518468864,4.549,109.93,109.86,37.90556835]
[1644518469063,1.29486725,109.94,109.86,37.90556835]
[1644518469309,11.549,109.93,109.86,37.90556835]
[1644518469863,13.6552,109.92,109.86,37.90556835]
[1644518470968,7.0,109.93,109.86,37.90556835]
[1644518471420,0.25,109.93,109.86,37.90556835]
[1644518472292,14.94686725,109.95,109.86,51.55776835]